[Event "Titled Tuesday Blitz July 20 2021"]
[White "Quparadze, Giga"]
[Black "Gabdushev, Ruslan"]
[WhiteFideId "13602250"]
[BlackFideId "4137833"]
[WhiteElo "2658"]
[BlackElo "2312"]
[Result "1-0"]
[Round "01"]
[TimeControl "180+1"]
[Date "2021.07.20"]
[WhiteClock "0:01:24"]
[BlackClock "0:00:13"]

1. e4 {[%clk 0:03:00]}  Nc6 {[%clk 0:02:56]} 2. Nf3 {[%clk 0:02:58]}  d6 {[%clk 0:02:54]} 3. d4 {[%clk 0:02:57]}  Bg4 {[%clk 0:02:53]} 4. Be3 {[%clk 0:02:56]}  Nf6 {[%clk 0:02:52]} 5. Nc3 {[%clk 0:02:56]}  e6 {[%clk 0:02:50]} 6. h3 {[%clk 0:02:56]}  Bh5 {[%clk 0:02:49]} 7. Be2 {[%clk 0:02:53]}  d5 {[%clk 0:02:48]} 8. e5 {[%clk 0:02:53]}  Nd7 {[%clk 0:02:48]} 9. Nd2 {[%clk 0:02:44]}  Bg6 {[%clk 0:02:45]} 10. O-O {[%clk 0:02:43]}  Nb4 {[%clk 0:02:40]} 11. Rc1 {[%clk 0:02:40]}  c5 {[%clk 0:02:39]} 12. Nf3 {[%clk 0:02:39]}  Nc6 {[%clk 0:02:33]} 13. dxc5 {[%clk 0:02:39]}  Bxc5 {[%clk 0:02:26]} 14. Bxc5 {[%clk 0:02:38]}  Nxc5 {[%clk 0:02:26]} 15. Nb5 {[%clk 0:02:39]}  O-O {[%clk 0:02:25]} 16. Bd3 {[%clk 0:02:39]}  a6 {[%clk 0:02:07]} 17. Bxg6 {[%clk 0:02:36]}  hxg6 {[%clk 0:02:06]} 18. Nbd4 {[%clk 0:02:34]}  Qc7 {[%clk 0:02:01]} 19. Nxc6 {[%clk 0:02:33]}  bxc6 {[%clk 0:01:59]} 20. c4 {[%clk 0:02:32]}  Qb6 {[%clk 0:01:49]} 21. cxd5 {[%clk 0:02:31]}  cxd5 {[%clk 0:01:49]} 22. Qd4 {[%clk 0:02:30]}  Rfc8 {[%clk 0:01:48]} 23. b4 {[%clk 0:02:27]}  Nd7 {[%clk 0:01:47]} 24. Qh4 {[%clk 0:02:27]}  f6 {[%clk 0:01:35]} 25. exf6 {[%clk 0:02:26]}  gxf6 {[%clk 0:01:35]} 26. Rfe1 {[%clk 0:02:18]}  e5 {[%clk 0:01:28]} 27. Rxc8+ {[%clk 0:02:12]}  Rxc8 {[%clk 0:01:28]} 28. Qg4 {[%clk 0:02:09]}  f5 {[%clk 0:01:00]} 29. Qh4 {[%clk 0:02:09]}  e4 {[%clk 0:00:55]} 30. Qe7 {[%clk 0:02:09]}  Nf8 {[%clk 0:00:50]} 31. Ng5 {[%clk 0:02:05]}  Qc7 {[%clk 0:00:48]} 32. Qf6 {[%clk 0:02:01]}  Rd8 {[%clk 0:00:36]} 33. Rd1 {[%clk 0:01:57]}  Rd6 {[%clk 0:00:34]} 34. Qe5 {[%clk 0:01:55]}  Qd8 {[%clk 0:00:34]} 35. h4 {[%clk 0:01:48]}  d4 {[%clk 0:00:34]} 36. Qc5 {[%clk 0:01:47]}  d3 {[%clk 0:00:33]} 37. Qc4+ {[%clk 0:01:48]}  Rd5 {[%clk 0:00:31]} 38. Qxa6 {[%clk 0:01:43]}  Qd6 {[%clk 0:00:25]} 39. Qc4 {[%clk 0:01:42]}  Kg7 {[%clk 0:00:24]} 40. b5 {[%clk 0:01:43]}  Qc5 {[%clk 0:00:18]} 41. Qa4 {[%clk 0:01:35]}  e3 {[%clk 0:00:17]} 42. fxe3 {[%clk 0:01:33]}  Qxe3+ {[%clk 0:00:17]} 43. Kh2 {[%clk 0:01:33]}  Qe5+ {[%clk 0:00:16]} 44. Kh1 {[%clk 0:01:32]}  Rd4 {[%clk 0:00:16]} 45. Qa7+ {[%clk 0:01:28]}  Nd7 {[%clk 0:00:16]} 46. Nf3 {[%clk 0:01:26]}  Qe2 {[%clk 0:00:14]} 47. Qxd4+ {[%clk 0:01:24]}  Kf7 {[%clk 0:00:13]} 48. Qxd7+ {[%clk 0:01:24]} 1-0


[Site "https://www.chess.com"]

[Event "Titled Tuesday Blitz July 20 2021"]
[White "Rosen, Eric"]
[Black "Boskovic, Drasko"]
[WhiteFideId "2032562"]
[BlackFideId "927368"]
[WhiteElo "2362"]
[BlackElo "2388"]
[Result "1-0"]
[Round "01"]
[TimeControl "180+1"]
[Date "2021.07.21"]
[WhiteClock "0:01:35"]
[BlackClock "0:01:05"]

1. d4 {[%clk 0:02:39]}  Nf6 {[%clk 0:02:44]} 2. Bf4 {[%clk 0:02:39]}  c5 {[%clk 0:02:41]} 3. e3 {[%clk 0:02:39]}  Nd5 {[%clk 0:02:41]} 4. Bg3 {[%clk 0:02:39]}  Qb6 {[%clk 0:02:40]} 5. b3 {[%clk 0:02:39]}  cxd4 {[%clk 0:02:39]} 6. exd4 {[%clk 0:02:40]}  Nc6 {[%clk 0:02:40]} 7. c3 {[%clk 0:02:40]}  d6 {[%clk 0:02:40]} 8. Bd3 {[%clk 0:02:37]}  g6 {[%clk 0:02:39]} 9. Ne2 {[%clk 0:02:37]}  Bg7 {[%clk 0:02:32]} 10. O-O {[%clk 0:02:37]}  O-O {[%clk 0:02:32]} 11. Nd2 {[%clk 0:02:38]}  Nxc3 {[%clk 0:02:18]} 12. Nxc3 {[%clk 0:02:19]}  Qxd4 {[%clk 0:02:18]} 13. Nde4 {[%clk 0:02:17]}  Nb4 {[%clk 0:02:09]} 14. Bc4 {[%clk 0:02:07]}  Bf5 {[%clk 0:01:42]} 15. Qxd4 {[%clk 0:01:57]}  Bxd4 {[%clk 0:01:43]} 16. Rad1 {[%clk 0:01:57]}  Bg7 {[%clk 0:01:40]} 17. a3 {[%clk 0:01:50]}  Nc6 {[%clk 0:01:39]} 18. f3 {[%clk 0:01:48]}  Na5 {[%clk 0:01:39]} 19. Nd5 {[%clk 0:01:45]}  Rae8 {[%clk 0:01:14]} 20. Rfe1 {[%clk 0:01:43]}  e6 {[%clk 0:01:11]} 21. Nxd6 {[%clk 0:01:41]}  Nxc4 {[%clk 0:01:12]} 22. Nxe8 {[%clk 0:01:35]}  Rxe8 {[%clk 0:01:05]} 23. bxc4 {[%clk 0:01:35]} 1-0


[Site "https://www.chess.com"]

[Event "Titled Tuesday Blitz July 20 2021"]
[White "Samsonkin, Artiom"]
[Black "Kaminski, Victor"]
[WhiteFideId "13503111"]
[BlackFideId "1131630"]
[WhiteElo "2513"]
[BlackElo "2181"]
[Result "1-0"]
[Round "01"]
[TimeControl "180+1"]
[Date "2021.07.21"]
[WhiteClock "0:00:08"]
[BlackClock "0:00:02"]

1. e4 {[%clk 0:03:00]}  e5 {[%clk 0:02:58]} 2. Nf3 {[%clk 0:03:00]}  Nc6 {[%clk 0:02:58]} 3. d4 {[%clk 0:03:01]}  exd4 {[%clk 0:02:58]} 4. Bc4 {[%clk 0:03:01]}  Nf6 {[%clk 0:02:54]} 5. e5 {[%clk 0:03:01]}  d5 {[%clk 0:02:53]} 6. Bb5 {[%clk 0:03:01]}  Ne4 {[%clk 0:02:53]} 7. Nxd4 {[%clk 0:03:01]}  Bd7 {[%clk 0:02:53]} 8. Bxc6 {[%clk 0:03:02]}  bxc6 {[%clk 0:02:54]} 9. O-O {[%clk 0:03:02]}  Bc5 {[%clk 0:02:49]} 10. f3 {[%clk 0:03:02]}  Ng5 {[%clk 0:02:50]} 11. Be3 {[%clk 0:03:02]}  Ne6 {[%clk 0:02:47]} 12. c3 {[%clk 0:02:53]}  O-O {[%clk 0:02:44]} 13. f4 {[%clk 0:02:53]}  Nxd4 {[%clk 0:02:39]} 14. cxd4 {[%clk 0:02:49]}  Be7 {[%clk 0:02:20]} 15. f5 {[%clk 0:02:48]}  Bg5 {[%clk 0:02:20]} 16. Qd2 {[%clk 0:02:37]}  h6 {[%clk 0:02:11]} 17. Nc3 {[%clk 0:02:36]}  Rb8 {[%clk 0:02:11]} 18. b3 {[%clk 0:02:28]}  c5 {[%clk 0:01:23]} 19. dxc5 {[%clk 0:02:14]}  Bxe3+ {[%clk 0:01:21]} 20. Qxe3 {[%clk 0:02:13]}  Bxf5 {[%clk 0:01:20]} 21. Rxf5 {[%clk 0:02:02]}  d4 {[%clk 0:01:19]} 22. Qd2 {[%clk 0:02:02]}  dxc3 {[%clk 0:01:18]} 23. Qxc3 {[%clk 0:02:03]}  Qd5 {[%clk 0:01:09]} 24. Rc1 {[%clk 0:01:21]}  Rb5 {[%clk 0:00:24]} 25. Rf3 {[%clk 0:01:05]}  Re8 {[%clk 0:00:20]} 26. Re3 {[%clk 0:00:56]}  Re6 {[%clk 0:00:13]} 27. a4 {[%clk 0:00:43]}  Rb8 {[%clk 0:00:12]} 28. h3 {[%clk 0:00:40]}  Rbe8 {[%clk 0:00:10]} 29. Rce1 {[%clk 0:00:38]}  Rc6 {[%clk 0:00:07]} 30. b4 {[%clk 0:00:37]}  a5 {[%clk 0:00:07]} 31. Rd3 {[%clk 0:00:15]}  axb4 {[%clk 0:00:06]} 32. Rxd5 {[%clk 0:00:16]}  bxc3 {[%clk 0:00:06]} 33. Rc1 {[%clk 0:00:16]}  Ra8 {[%clk 0:00:04]} 34. Rxc3 {[%clk 0:00:15]}  Rxa4 {[%clk 0:00:04]} 35. Rf3 {[%clk 0:00:14]}  Rc4 {[%clk 0:00:02]} 36. Rd8+ {[%clk 0:00:11]}  Kh7 {[%clk 0:00:02]} 37. Rxf7 {[%clk 0:00:10]}  R6xc5 {[%clk 0:00:01]} 38. Rdd7 {[%clk 0:00:08]}  Rxe5 {[%clk 0:00:01]} 39. Rxg7+ {[%clk 0:00:09]}  Kh8 {[%clk 0:00:02]} 40. Rh7+ {[%clk 0:00:09]}  Kg8 {[%clk 0:00:02]} 41. Rxh6 {[%clk 0:00:09]}  Rc1+ {[%clk 0:00:01]} 42. Kh2 {[%clk 0:00:09]}  Rg5 {[%clk 0:00:02]} 43. Re6 {[%clk 0:00:08]}  Rc2 {[%clk 0:00:02]} 44. Re8# {[%clk 0:00:08]} 1-0


[Site "https://www.chess.com"]

[Event "Titled Tuesday Blitz July 20 2021"]
[White "Shevtchenko, Olesya"]
[Black "Zubov, Alexander"]
[WhiteFideId "24131890"]
[BlackFideId "14109409"]
[WhiteElo "2003"]
[BlackElo "2740"]
[Result "0-1"]
[Round "01"]
[TimeControl "180+1"]
[Date "2021.07.20"]
[WhiteClock "0:00:11"]
[BlackClock "0:00:50"]

1. e4 {[%clk 0:03:00]}  e5 {[%clk 0:02:59]} 2. Bc4 {[%clk 0:03:00]}  Nf6 {[%clk 0:02:57]} 3. d3 {[%clk 0:03:00]}  c6 {[%clk 0:02:57]} 4. Nf3 {[%clk 0:03:00]}  d5 {[%clk 0:02:57]} 5. Bb3 {[%clk 0:03:00]}  a5 {[%clk 0:02:56]} 6. a4 {[%clk 0:03:00]}  Bb4+ {[%clk 0:02:54]} 7. Bd2 {[%clk 0:03:00]}  Bxd2+ {[%clk 0:02:53]} 8. Qxd2 {[%clk 0:02:58]}  Nbd7 {[%clk 0:02:52]} 9. Nc3 {[%clk 0:02:55]}  d4 {[%clk 0:02:36]} 10. Ne2 {[%clk 0:02:53]}  O-O {[%clk 0:02:37]} 11. Ng3 {[%clk 0:02:41]}  g6 {[%clk 0:01:58]} 12. h4 {[%clk 0:02:27]}  Ng4 {[%clk 0:01:54]} 13. h5 {[%clk 0:02:24]}  Qf6 {[%clk 0:01:53]} 14. hxg6 {[%clk 0:02:16]}  hxg6 {[%clk 0:01:54]} 15. Ng5 {[%clk 0:02:11]}  Qf4 {[%clk 0:01:44]} 16. Qxf4 {[%clk 0:02:05]}  exf4 {[%clk 0:01:45]} 17. Ne2 {[%clk 0:02:05]}  Nc5 {[%clk 0:01:45]} 18. Bc4 {[%clk 0:02:00]}  Ne5 {[%clk 0:01:40]} 19. Nxf4 {[%clk 0:01:50]}  Nxc4 {[%clk 0:01:39]} 20. dxc4 {[%clk 0:01:50]}  Re8 {[%clk 0:01:37]} 21. f3 {[%clk 0:01:47]}  f6 {[%clk 0:01:35]} 22. Ngh3 {[%clk 0:01:43]}  Kg7 {[%clk 0:01:31]} 23. Nd3 {[%clk 0:01:31]}  Nd7 {[%clk 0:01:18]} 24. Kf2 {[%clk 0:01:29]}  g5 {[%clk 0:01:16]} 25. Kg3 {[%clk 0:01:25]}  b6 {[%clk 0:01:08]} 26. Rh2 {[%clk 0:01:23]}  Ba6 {[%clk 0:01:06]} 27. b3 {[%clk 0:01:21]}  Rh8 {[%clk 0:01:06]} 28. Rah1 {[%clk 0:01:20]}  b5 {[%clk 0:01:05]} 29. cxb5 {[%clk 0:01:07]}  cxb5 {[%clk 0:01:05]} 30. axb5 {[%clk 0:01:08]}  Bxb5 {[%clk 0:01:06]} 31. Nhf2 {[%clk 0:01:02]}  Rxh2 {[%clk 0:01:06]} 32. Rxh2 {[%clk 0:01:03]}  Rc8 {[%clk 0:01:06]} 33. Ne1 {[%clk 0:00:58]}  a4 {[%clk 0:01:06]} 34. bxa4 {[%clk 0:00:56]}  Bxa4 {[%clk 0:01:07]} 35. Rh1 {[%clk 0:00:51]}  Ne5 {[%clk 0:01:07]} 36. Nfd3 {[%clk 0:00:48]}  Nc4 {[%clk 0:01:04]} 37. f4 {[%clk 0:00:40]}  Ne3 {[%clk 0:01:02]} 38. fxg5 {[%clk 0:00:34]}  fxg5 {[%clk 0:01:03]} 39. Nf3 {[%clk 0:00:32]}  Bxc2 {[%clk 0:01:01]} 40. Nb4 {[%clk 0:00:27]}  d3 {[%clk 0:01:00]} 41. Rc1 {[%clk 0:00:12]}  Rb8 {[%clk 0:00:53]} 42. Nxc2 {[%clk 0:00:11]}  dxc2 {[%clk 0:00:53]} 43. Nd4 {[%clk 0:00:11]}  Rb1 {[%clk 0:00:49]} 44. Rxc2 {[%clk 0:00:11]}  Nxc2 {[%clk 0:00:50]} 0-1


[Site "https://www.chess.com"]

[Event "Titled Tuesday Blitz July 20 2021"]
[White "Shubenkova, Veronika"]
[Black "Kretov, Evgenij"]
[WhiteFideId "44124040"]
[BlackFideId "4167821"]
[WhiteElo "1895"]
[BlackElo "2400"]
[Result "0-1"]
[Round "01"]
[TimeControl "180+1"]
[Date "2021.07.21"]
[WhiteClock "0:00:59"]
[BlackClock "0:00:49"]

1. d4 {[%clk 0:02:57]}  Nf6 {[%clk 0:02:58]} 2. Nf3 {[%clk 0:02:54]}  e6 {[%clk 0:02:58]} 3. e3 {[%clk 0:02:53]}  b6 {[%clk 0:02:58]} 4. Bd3 {[%clk 0:02:48]}  c5 {[%clk 0:02:57]} 5. O-O {[%clk 0:02:48]}  Bb7 {[%clk 0:02:58]} 6. Ne5 {[%clk 0:02:47]}  Be7 {[%clk 0:02:55]} 7. c3 {[%clk 0:02:46]}  O-O {[%clk 0:02:54]} 8. f4 {[%clk 0:02:42]}  Nc6 {[%clk 0:02:53]} 9. Nd2 {[%clk 0:02:41]}  d6 {[%clk 0:02:52]} 10. Nef3 {[%clk 0:02:27]}  d5 {[%clk 0:02:45]} 11. Ne5 {[%clk 0:02:26]}  Ne8 {[%clk 0:02:41]} 12. Rf3 {[%clk 0:02:21]}  f5 {[%clk 0:02:38]} 13. Rh3 {[%clk 0:02:19]}  Nf6 {[%clk 0:02:34]} 14. b3 {[%clk 0:02:13]}  a5 {[%clk 0:02:31]} 15. a4 {[%clk 0:02:07]}  Qc7 {[%clk 0:02:26]} 16. Bb2 {[%clk 0:02:03]}  Ba6 {[%clk 0:02:25]} 17. Bb5 {[%clk 0:02:00]}  Bxb5 {[%clk 0:02:22]} 18. axb5 {[%clk 0:01:58]}  Nxe5 {[%clk 0:02:22]} 19. dxe5 {[%clk 0:01:56]}  Ng4 {[%clk 0:02:22]} 20. c4 {[%clk 0:01:54]}  Rfd8 {[%clk 0:02:03]} 21. Qc2 {[%clk 0:01:54]}  dxc4 {[%clk 0:01:55]} 22. bxc4 {[%clk 0:01:52]}  Qd7 {[%clk 0:01:49]} 23. Bc3 {[%clk 0:01:50]}  Qd3 {[%clk 0:01:48]} 24. Qb2 {[%clk 0:01:48]}  Qe2 {[%clk 0:01:29]} 25. Rf1 {[%clk 0:01:43]}  Nxe3 {[%clk 0:01:26]} 26. Rf2 {[%clk 0:01:42]}  Qd1+ {[%clk 0:01:17]} 27. Nf1 {[%clk 0:01:37]}  Ng4 {[%clk 0:01:10]} 28. Rd2 {[%clk 0:01:35]}  Rxd2 {[%clk 0:01:10]} 29. Qxd2 {[%clk 0:01:34]}  Rd8 {[%clk 0:01:08]} 30. Qb2 {[%clk 0:01:25]}  Qa4 {[%clk 0:01:00]} 31. Rg3 {[%clk 0:01:25]}  Qxc4 {[%clk 0:00:59]} 32. h3 {[%clk 0:01:23]}  Nh6 {[%clk 0:00:59]} 33. Nd2 {[%clk 0:01:20]}  Qxf4 {[%clk 0:00:58]} 34. Rf3 {[%clk 0:01:18]}  Qh4 {[%clk 0:00:56]} 35. Nb3 {[%clk 0:01:14]}  Rd1+ {[%clk 0:00:54]} 36. Rf1 {[%clk 0:01:14]}  Rxf1+ {[%clk 0:00:52]} 37. Kxf1 {[%clk 0:01:13]}  Qc4+ {[%clk 0:00:52]} 38. Kg1 {[%clk 0:01:13]}  Qxb5 {[%clk 0:00:52]} 39. Qa2 {[%clk 0:01:11]}  a4 {[%clk 0:00:51]} 40. Nd2 {[%clk 0:01:07]}  Qd7 {[%clk 0:00:50]} 41. Nc4 {[%clk 0:01:06]}  b5 {[%clk 0:00:50]} 42. Nb6 {[%clk 0:01:05]}  Qc6 {[%clk 0:00:51]} 43. Na8 {[%clk 0:01:02]}  Kf7 {[%clk 0:00:49]} 44. g4 {[%clk 0:01:00]}  Qxa8 {[%clk 0:00:49]} 45. gxf5 {[%clk 0:00:59]}  Nxf5 {[%clk 0:00:49]} 0-1


[Site "https://www.chess.com"]

[Event "Titled Tuesday Blitz July 20 2021"]
[White "Sihite, Chelsie Monica Ignesias"]
[Black "Leitao, Rafael"]
[WhiteFideId "7101198"]
[BlackFideId "2101246"]
[WhiteElo "2395"]
[BlackElo "2728"]
[Result "0-1"]
[Round "01"]
[TimeControl "180+1"]
[Date "2021.07.21"]
[WhiteClock "0:00:49"]
[BlackClock "0:01:07"]

1. c4 {[%clk 0:03:00]}  Nf6 {[%clk 0:02:58]} 2. g3 {[%clk 0:02:59]}  e5 {[%clk 0:02:56]} 3. Bg2 {[%clk 0:02:58]}  Nc6 {[%clk 0:02:55]} 4. Nc3 {[%clk 0:02:58]}  Bc5 {[%clk 0:02:54]} 5. Nf3 {[%clk 0:02:55]}  d6 {[%clk 0:02:53]} 6. O-O {[%clk 0:02:55]}  O-O {[%clk 0:02:50]} 7. d3 {[%clk 0:02:55]}  h6 {[%clk 0:02:50]} 8. a3 {[%clk 0:02:52]}  a6 {[%clk 0:02:45]} 9. b4 {[%clk 0:02:52]}  Ba7 {[%clk 0:02:46]} 10. Rb1 {[%clk 0:02:51]}  Re8 {[%clk 0:02:45]} 11. e4 {[%clk 0:02:51]}  Bg4 {[%clk 0:02:42]} 12. h3 {[%clk 0:02:50]}  Bxf3 {[%clk 0:02:42]} 13. Bxf3 {[%clk 0:02:48]}  Nd4 {[%clk 0:02:42]} 14. Bg2 {[%clk 0:02:46]}  c6 {[%clk 0:02:35]} 15. Kh2 {[%clk 0:02:45]}  b5 {[%clk 0:02:28]} 16. f4 {[%clk 0:02:34]}  c5 {[%clk 0:02:02]} 17. fxe5 {[%clk 0:02:12]}  dxe5 {[%clk 0:02:02]} 18. Nd5 {[%clk 0:02:11]}  Nxd5 {[%clk 0:02:01]} 19. exd5 {[%clk 0:02:09]}  Rc8 {[%clk 0:01:51]} 20. Qh5 {[%clk 0:02:02]}  Qd7 {[%clk 0:01:39]} 21. h4 {[%clk 0:01:56]}  cxb4 {[%clk 0:01:33]} 22. Bh3 {[%clk 0:01:46]}  Qb7 {[%clk 0:01:31]} 23. Bxc8 {[%clk 0:01:39]}  Rxc8 {[%clk 0:01:31]} 24. Qxe5 {[%clk 0:01:31]}  Qd7 {[%clk 0:01:17]} 25. Qh5 {[%clk 0:01:20]}  Re8 {[%clk 0:01:15]} 26. axb4 {[%clk 0:01:02]}  Re2+ {[%clk 0:01:11]} 27. Rf2 {[%clk 0:00:52]}  Rxf2+ {[%clk 0:01:10]} 28. Kg1 {[%clk 0:00:49]}  Nf3+ {[%clk 0:01:07]} 0-1


[Site "https://www.chess.com"]

[Event "Titled Tuesday Blitz July 20 2021"]
[White "Siva Mahadevan"]
[Black "Pajeken, Jakob Leon"]
[WhiteFideId "25043153"]
[BlackFideId "12942839"]
[WhiteElo "2781"]
[BlackElo "2418"]
[Result "1-0"]
[Round "01"]
[TimeControl "180+1"]
[Date "2021.07.21"]
[WhiteClock "0:00:25"]
[BlackClock "0:00:27"]

1. e4 {[%clk 0:03:00]}  e5 {[%clk 0:02:59]} 2. Nf3 {[%clk 0:03:00]}  Nc6 {[%clk 0:02:59]} 3. Bb5 {[%clk 0:03:01]}  a6 {[%clk 0:02:59]} 4. Ba4 {[%clk 0:03:01]}  Nf6 {[%clk 0:02:58]} 5. O-O {[%clk 0:03:00]}  Be7 {[%clk 0:02:59]} 6. Re1 {[%clk 0:03:01]}  b5 {[%clk 0:02:59]} 7. Bb3 {[%clk 0:03:01]}  d6 {[%clk 0:02:59]} 8. c3 {[%clk 0:03:01]}  O-O {[%clk 0:02:58]} 9. h3 {[%clk 0:03:02]}  Na5 {[%clk 0:02:58]} 10. Bc2 {[%clk 0:03:02]}  c5 {[%clk 0:02:58]} 11. d4 {[%clk 0:03:03]}  Qc7 {[%clk 0:02:57]} 12. Nbd2 {[%clk 0:03:03]}  cxd4 {[%clk 0:02:54]} 13. cxd4 {[%clk 0:03:04]}  Nc6 {[%clk 0:02:53]} 14. Nb3 {[%clk 0:03:03]}  a5 {[%clk 0:02:53]} 15. Be3 {[%clk 0:03:03]}  a4 {[%clk 0:02:53]} 16. Nbd2 {[%clk 0:03:04]}  Nb4 {[%clk 0:02:53]} 17. Bb1 {[%clk 0:02:58]}  Bd7 {[%clk 0:02:53]} 18. a3 {[%clk 0:02:55]}  Nc6 {[%clk 0:02:51]} 19. Bd3 {[%clk 0:02:30]}  Qb7 {[%clk 0:02:48]} 20. Qe2 {[%clk 0:02:16]}  Rab8 {[%clk 0:02:47]} 21. Rac1 {[%clk 0:02:16]}  Rfe8 {[%clk 0:02:46]} 22. dxe5 {[%clk 0:02:09]}  Nxe5 {[%clk 0:02:46]} 23. Nxe5 {[%clk 0:02:09]}  dxe5 {[%clk 0:02:47]} 24. Bc5 {[%clk 0:02:09]}  Bxc5 {[%clk 0:02:39]} 25. Rxc5 {[%clk 0:02:10]}  Rbc8 {[%clk 0:02:37]} 26. Rec1 {[%clk 0:02:08]}  Rxc5 {[%clk 0:02:37]} 27. Rxc5 {[%clk 0:02:08]}  b4 {[%clk 0:02:20]} 28. Nc4 {[%clk 0:02:07]}  bxa3 {[%clk 0:02:18]} 29. bxa3 {[%clk 0:02:08]}  Qb8 {[%clk 0:02:12]} 30. Qd2 {[%clk 0:02:02]}  Bb5 {[%clk 0:02:10]} 31. Rxb5 {[%clk 0:01:15]}  Qxb5 {[%clk 0:02:06]} 32. Nd6 {[%clk 0:01:16]}  Qb3 {[%clk 0:01:59]} 33. Nxe8 {[%clk 0:01:16]}  Nxe8 {[%clk 0:01:59]} 34. Bc2 {[%clk 0:01:04]}  Qxa3 {[%clk 0:01:57]} 35. Qd1 {[%clk 0:01:02]}  g6 {[%clk 0:01:53]} 36. Bxa4 {[%clk 0:01:02]}  Nf6 {[%clk 0:01:53]} 37. Bc2 {[%clk 0:00:59]}  Kg7 {[%clk 0:01:52]} 38. Qd3 {[%clk 0:00:59]}  Qc5 {[%clk 0:01:51]} 39. g3 {[%clk 0:00:55]}  h5 {[%clk 0:01:50]} 40. Kg2 {[%clk 0:00:50]}  Ne8 {[%clk 0:01:49]} 41. Bb3 {[%clk 0:00:48]}  Nc7 {[%clk 0:01:49]} 42. Qd7 {[%clk 0:00:46]}  Nb5 {[%clk 0:01:15]} 43. Qxf7+ {[%clk 0:00:33]}  Kh6 {[%clk 0:01:13]} 44. Qg8 {[%clk 0:00:31]}  Qe7 {[%clk 0:01:12]} 45. Qh8+ {[%clk 0:00:27]}  Qh7 {[%clk 0:01:11]} 46. Qxe5 {[%clk 0:00:27]}  Nc7 {[%clk 0:01:10]} 47. Qf4+ {[%clk 0:00:26]}  Kg7 {[%clk 0:01:08]} 48. Qxc7+ {[%clk 0:00:26]}  Kh6 {[%clk 0:01:08]} 49. Qxh7+ {[%clk 0:00:26]}  Kxh7 {[%clk 0:00:28]} 50. f4 {[%clk 0:00:27]}  Kg7 {[%clk 0:00:28]} 51. e5 {[%clk 0:00:27]}  Kh6 {[%clk 0:00:27]} 52. Kf3 {[%clk 0:00:27]}  g5 {[%clk 0:00:28]} 53. f5 {[%clk 0:00:28]}  g4+ {[%clk 0:00:28]} 54. hxg4 {[%clk 0:00:28]}  Kg5 {[%clk 0:00:28]} 55. gxh5 {[%clk 0:00:28]}  Kxf5 {[%clk 0:00:28]} 56. e6 {[%clk 0:00:28]}  Kf6 {[%clk 0:00:29]} 57. h6 {[%clk 0:00:28]}  Kg6 {[%clk 0:00:29]} 58. e7 {[%clk 0:00:28]}  Kf6 {[%clk 0:00:28]} 59. e8=Q {[%clk 0:00:27]}  Kf5 {[%clk 0:00:28]} 60. h7 {[%clk 0:00:26]}  Kg5 {[%clk 0:00:29]} 61. h8=Q {[%clk 0:00:24]}  Kf5 {[%clk 0:00:27]} 62. Qhe5# {[%clk 0:00:25]} 1-0


[Site "https://www.chess.com"]

[Event "Titled Tuesday Blitz July 20 2021"]
[White "Sjugirov, Sanan"]
[Black "Roman, Rodrigo"]
[WhiteFideId "4189302"]
[BlackFideId "3701220"]
[WhiteElo "2472"]
[BlackElo "2043"]
[Result "1-0"]
[Round "01"]
[TimeControl "180+1"]
[Date "2021.07.20"]
[WhiteClock "0:00:04"]
[BlackClock "0:00:41"]

1. Nf3 {[%clk 0:03:00]}  Nf6 {[%clk 0:02:57]} 2. c4 {[%clk 0:03:00]}  g6 {[%clk 0:02:55]} 3. Nc3 {[%clk 0:03:00]}  Bg7 {[%clk 0:02:55]} 4. e4 {[%clk 0:02:59]}  d6 {[%clk 0:02:55]} 5. d4 {[%clk 0:02:59]}  O-O {[%clk 0:02:54]} 6. Be2 {[%clk 0:02:58]}  c5 {[%clk 0:02:54]} 7. O-O {[%clk 0:02:57]}  Nc6 {[%clk 0:02:54]} 8. d5 {[%clk 0:02:54]}  Na5 {[%clk 0:02:53]} 9. Re1 {[%clk 0:02:36]}  e5 {[%clk 0:02:54]} 10. Rb1 {[%clk 0:02:28]}  b6 {[%clk 0:02:53]} 11. a3 {[%clk 0:02:26]}  Nb7 {[%clk 0:02:49]} 12. b4 {[%clk 0:02:25]}  cxb4 {[%clk 0:02:44]} 13. axb4 {[%clk 0:02:25]}  a5 {[%clk 0:02:45]} 14. bxa5 {[%clk 0:02:20]}  Rxa5 {[%clk 0:02:45]} 15. Nd2 {[%clk 0:02:16]}  Nc5 {[%clk 0:02:43]} 16. Nb3 {[%clk 0:02:13]}  Na4 {[%clk 0:02:30]} 17. Nxa4 {[%clk 0:02:00]}  Rxa4 {[%clk 0:02:31]} 18. Bd3 {[%clk 0:01:50]}  Nd7 {[%clk 0:02:30]} 19. Nd4 {[%clk 0:01:40]}  Nc5 {[%clk 0:02:26]} 20. Nc6 {[%clk 0:01:40]}  Qc7 {[%clk 0:02:26]} 21. Be3 {[%clk 0:01:25]}  Ra3 {[%clk 0:02:26]} 22. Bc2 {[%clk 0:01:22]}  h6 {[%clk 0:02:23]} 23. Qc1 {[%clk 0:01:21]}  Rc3 {[%clk 0:02:17]} 24. Qd2 {[%clk 0:00:53]}  Rxc4 {[%clk 0:02:12]} 25. Bd3 {[%clk 0:00:46]}  Nxe4 {[%clk 0:02:07]} 26. Qa2 {[%clk 0:00:43]}  Rxc6 {[%clk 0:02:01]} 27. dxc6 {[%clk 0:00:36]}  Nc5 {[%clk 0:02:02]} 28. Bxc5 {[%clk 0:00:27]}  dxc5 {[%clk 0:02:00]} 29. Qa4 {[%clk 0:00:16]}  Be6 {[%clk 0:01:55]} 30. Qb5 {[%clk 0:00:15]}  Rb8 {[%clk 0:01:54]} 31. Red1 {[%clk 0:00:14]}  Bd5 {[%clk 0:01:51]} 32. Bxg6 {[%clk 0:00:10]}  Bxc6 {[%clk 0:01:51]} 33. Qb3 {[%clk 0:00:09]}  b5 {[%clk 0:01:46]} 34. Bc2 {[%clk 0:00:09]}  c4 {[%clk 0:01:46]} 35. Qb4 {[%clk 0:00:08]}  Bf8 {[%clk 0:01:46]} 36. Qc3 {[%clk 0:00:07]}  Bc5 {[%clk 0:01:45]} 37. Qg3+ {[%clk 0:00:07]}  Kh8 {[%clk 0:01:44]} 38. Qh4 {[%clk 0:00:07]}  Bf8 {[%clk 0:01:39]} 39. Qf6+ {[%clk 0:00:06]}  Bg7 {[%clk 0:01:39]} 40. Qd6 {[%clk 0:00:06]}  Qxd6 {[%clk 0:01:35]} 41. Rxd6 {[%clk 0:00:07]}  Be8 {[%clk 0:01:34]} 42. Rbd1 {[%clk 0:00:04]}  Kg8 {[%clk 0:01:21]} 43. Rd8 {[%clk 0:00:04]}  Rxd8 {[%clk 0:01:21]} 44. Rxd8 {[%clk 0:00:05]}  Kf8 {[%clk 0:01:22]} 45. Rb8 {[%clk 0:00:05]}  Ke7 {[%clk 0:01:19]} 46. Kf1 {[%clk 0:00:05]}  h5 {[%clk 0:01:14]} 47. f3 {[%clk 0:00:05]}  Bh6 {[%clk 0:01:15]} 48. Ke2 {[%clk 0:00:05]}  Bc1 {[%clk 0:01:13]} 49. Be4 {[%clk 0:00:04]}  Ba3 {[%clk 0:01:11]} 50. Bd5 {[%clk 0:00:04]}  f6 {[%clk 0:01:02]} 51. h3 {[%clk 0:00:04]}  Bd7 {[%clk 0:01:00]} 52. g4 {[%clk 0:00:04]}  hxg4 {[%clk 0:00:58]} 53. fxg4 {[%clk 0:00:04]}  Kd6 {[%clk 0:00:59]} 54. Be4 {[%clk 0:00:04]}  b4 {[%clk 0:00:58]} 55. Bf5 {[%clk 0:00:04]}  Bxf5 {[%clk 0:00:48]} 56. gxf5 {[%clk 0:00:05]}  b3 {[%clk 0:00:48]} 57. Kd2 {[%clk 0:00:05]}  Kc7 {[%clk 0:00:49]} 58. Rb5 {[%clk 0:00:05]}  Kc6 {[%clk 0:00:49]} 59. Rb8 {[%clk 0:00:05]}  Kc7 {[%clk 0:00:49]} 60. Ra8 {[%clk 0:00:04]}  Bb4+ {[%clk 0:00:48]} 61. Kc1 {[%clk 0:00:05]}  c3 {[%clk 0:00:49]} 62. Ra4 {[%clk 0:00:04]}  b2+ {[%clk 0:00:41]} 63. Kc2 {[%clk 0:00:04]} 1-0


[Site "https://www.chess.com"]